bitfinex-derivatives/quotes_BTCF0:USTF0_20220102
["timestamp","ask_amount","ask_price","bid_price","bid_amount"]
[1641143084565,0.02090393,47857.0,47853.0,0.14033567]
[1641143084965,0.18,47856.0,47853.0,0.14033567]
[1641143085171,0.18,47856.0,47851.0,0.57053292]
[1641143085469,0.18,47852.0,47851.0,0.57053292]
[1641143085666,0.46067134,47852.0,47851.0,0.57053292]
[1641143085865,0.47046534,47852.0,47846.0,1.37474696]
[1641143086668,0.47046534,47852.0,47845.0,1.18777436]
[1641143086869,0.65946534,47852.0,47846.0,0.122]
[1641143087468,0.12,47848.0,47846.0,0.122]
[1641143087669,0.14033567,47847.0,47846.0,0.122]
[1641143088072,0.14033567,47847.0,47839.0,1.71444696]
[1641143088670,0.14033567,47847.0,47840.0,0.01187822]
[1641143088876,0.32233567,47847.0,47840.0,0.01187822]
[1641143089275,0.32233567,47847.0,47839.0,1.89244696]
[1641143090273,0.18,47844.0,47839.0,0.3397]
[1641143090474,0.02090906,47842.0,47839.0,0.3397]
[1641143090877,0.179,47844.0,47839.0,0.18]
[1641143091279,0.359,47844.0,47839.0,0.18]
[1641143091477,0.02090927,47842.0,47839.0,0.18]
[1641143091678,0.189794,47841.0,47836.0,1.37474696]
[1641143091879,0.02091115,47840.0,47828.0,1.48324713]
[1641143092279,0.08091115,47840.0,47828.0,1.48324713]
[1641143092478,0.08091115,47840.0,47830.0,0.01188062]
[1641143092678,0.02091115,47840.0,47828.0,0.02]
[1641143092878,0.20891115,47840.0,47831.0,0.18]
[1641143093278,0.20891115,47840.0,47830.0,0.01188062]
[1641143093478,0.20891115,47840.0,47828.0,0.02]
[1641143093679,0.02091622,47830.0,47828.0,0.02]
[1641143094778,0.20991622,47830.0,47828.0,0.02]
[1641143094979,0.189,47830.0,47828.0,0.02]
[1641143096179,0.14033567,47834.0,47829.0,0.19188124]
[1641143096381,0.14033567,47834.0,47829.0,0.01188124]
[1641143096594,0.14033567,47834.0,47830.0,0.01188124]
[1641143096794,0.32933567,47834.0,47832.0,0.18]
[1641143096997,0.32933567,47834.0,47830.0,0.19188124]
[1641143097195,0.32933567,47834.0,47830.0,0.18]
[1641143097495,0.32933567,47834.0,47831.0,0.01188124]
[1641143098095,0.32933567,47834.0,47830.0,1.3759318]
[1641143098296,0.14033567,47834.0,47830.0,1.3759318]
[1641143098895,0.33033567,47834.0,47830.0,1.3759318]
[1641143099500,0.33033567,47834.0,47829.0,1.3759318]
[1641143100096,0.02091357,47832.0,47829.0,1.3759318]
[1641143100495,0.02091357,47832.0,47828.0,1.3959318]
[1641143100901,0.21091357,47832.0,47828.0,1.3959318]
[1641143101497,0.19,47832.0,47831.0,0.18]
[1641143101700,1.30626149,47839.0,47831.0,0.34124058]
[1641143102003,1.42577248,47842.0,47838.0,0.18]
[1641143102298,1.42577248,47842.0,47841.0,0.18]
[1641143102497,1.42577248,47850.0,47841.0,1.286]
[1641143102697,1.42577248,47850.0,47839.0,0.2618852]
[1641143102898,1.42577248,47850.0,47841.0,0.198]
[1641143103497,0.02090325,47856.0,47843.0,1.3759318]
[1641143103498,0.20090325,47856.0,47843.0,1.3759318]
[1641143103698,0.02090325,47856.0,47847.0,0.14033567]
[1641143104097,0.18,47854.0,47847.0,0.14033567]
[1641143104297,0.14090325,47856.0,47847.0,0.14033567]
[1641143104498,0.02090325,47856.0,47843.0,1.3759318]
[1641143104701,0.02090325,47856.0,47842.0,0.32033567]
[1641143104702,1.42577248,47853.0,47842.0,0.32033567]
[1641143104899,1.60577248,47853.0,47849.0,0.34320642]
[1641143105102,0.02090564,47850.0,47849.0,0.34320642]
[1641143105701,0.16124131,47850.0,47849.0,0.34320642]
[1641143106000,0.34124131,47850.0,47847.0,0.7500107]
[1641143106199,0.16124131,47850.0,47838.0,0.18]
[1641143106798,0.34424131,47850.0,47839.0,0.195794]
[1641143107400,0.34424143,47850.0,47839.0,0.195794]
[1641143107601,0.32333567,47850.0,47839.0,0.195794]
[1641143107804,0.14033567,47844.0,47839.0,0.195794]
[1641143108002,0.22432567,47844.0,47839.0,0.195794]
[1641143108205,0.22432567,47844.0,47839.0,0.009794]
[1641143108402,0.22432567,47844.0,47831.0,0.48354209]
[1641143108403,0.0209094,47841.0,47831.0,0.48354209]
[1641143108601,0.0209094,47841.0,47833.0,0.12]
[1641143108801,0.39432567,47844.0,47839.0,0.175]
[1641143109001,0.31033567,47844.0,47839.0,0.175]
[1641143109403,0.20090971,47841.0,47839.0,0.175]
[1641143109603,0.02091252,47840.0,47839.0,0.175]
[1641143109806,0.16124819,47840.0,47839.0,0.175]
[1641143110204,0.16124593,47840.0,47829.0,0.34320642]
[1641143110404,0.16124593,47840.0,47827.0,0.34320642]
[1641143110903,0.34324593,47840.0,47829.0,0.184]
[1641143111303,0.32233567,47840.0,47837.0,0.18]
[1641143111503,0.182,47840.0,47837.0,0.18]
[1641143111704,0.182,47840.0,47837.0,0.32033567]
[1641143112306,0.14033567,47844.0,47837.0,0.32033567]
[1641143112503,0.14033567,47844.0,47840.0,0.18]
[1641143112904,0.29833567,47844.0,47837.0,0.32633567]
[1641143113104,0.3192441,47844.0,47837.0,0.32633567]
[1641143114105,0.1612441,47844.0,47837.0,0.14033567]
[1641143114708,0.14033567,47844.0,47837.0,0.14033567]
[1641143114908,0.25533567,47844.0,47837.0,0.32633567]
[1641143116109,0.14033567,47844.0,47837.0,0.14033567]
[1641143116908,0.16633567,47844.0,47837.0,0.32933567]
[1641143117108,0.28183567,47844.0,47837.0,0.32933567]
[1641143117911,0.28183567,47844.0,47838.0,0.009794]
[1641143118110,0.25583567,47844.0,47838.0,0.009794]
[1641143118911,0.35583567,47844.0,47838.0,0.197794]
[1641143119311,0.53583567,47844.0,47838.0,0.197794]
[1641143119712,0.35583567,47844.0,47838.0,0.197794]
[1641143120116,0.43583567,47844.0,47838.0,0.009794]
[1641143120316,0.18,47843.0,47837.0,0.14033567]
[1641143120913,0.078,47843.0,47837.0,0.32633567]
[1641143121113,0.02091044,47839.0,47837.0,0.32633567]
[1641143122114,0.02091044,47839.0,47837.0,0.14033567]
[1641143122915,0.08491044,47839.0,47837.0,0.32733567]
[1641143124218,0.02091044,47839.0,47837.0,0.14033567]
[1641143124916,0.12691044,47839.0,47837.0,0.32633567]
[1641143126219,0.02091044,47839.0,47837.0,0.14033567]
[1641143126920,0.14591044,47839.0,47837.0,0.32733567]
[1641143128320,0.02091129,47838.0,47837.0,0.14033567]
[1641143128719,0.02091129,47838.0,47837.0,0.48425039]
[1641143128919,0.18491129,47838.0,47837.0,0.66925039]
[1641143129520,0.18491129,47838.0,47837.0,0.32533567]
[1641143130320,0.02091129,47838.0,47837.0,0.48440614]
[1641143130920,0.02091129,47838.0,47837.0,0.66940614]
[1641143130921,0.18491129,47838.0,47837.0,0.66940614]
[1641143131521,0.164,47838.0,47837.0,0.66940614]
[1641143131723,0.1155,47844.0,47837.0,0.66940614]
[1641143132022,1.30295035,47849.0,47843.0,0.18]
[1641143132222,1.48295035,47849.0,47838.0,0.009794]
[1641143132522,0.02090684,47847.0,47838.0,0.009794]
[1641143132921,0.02090684,47847.0,47838.0,0.205794]
[1641143133922,0.02090684,47847.0,47842.0,0.14033567]
[1641143134925,0.02090684,47847.0,47843.0,0.34407047]
[1641143135124,0.18,47849.0,47843.0,0.34407047]
[1641143135325,0.20090629,47849.0,47843.0,0.34407047]
[1641143135727,0.20090629,47849.0,47842.0,0.90752687]
[1641143135728,0.20090629,47849.0,47842.0,0.67840614]
[1641143136525,0.02090629,47849.0,47842.0,0.67840614]
[1641143136928,1.30295035,47854.0,47842.0,0.67640614]
[1641143137126,0.02090491,47852.0,47843.0,0.34407047]
[1641143137824,0.02090744,47846.0,47843.0,0.34407047]
[1641143138026,0.02090744,47846.0,47845.0,0.34407047]
[1641143138228,0.02090369,47855.0,47845.0,0.62649447]
[1641143138426,0.02090369,47855.0,47848.0,0.18]
[1641143138627,0.02090369,47855.0,47845.0,1.73149447]
[1641143138826,0.02090369,47855.0,47848.0,0.375]
[1641143139828,0.02090369,47855.0,47851.0,0.14033567]
[1641143140228,0.02090369,47855.0,47852.0,0.34279059]
[1641143140630,3.69e-06,47855.0,47854.0,0.18]
[1641143140833,1.42577248,47868.0,47855.0,1.114794]
[1641143141031,0.73509136,47868.0,47867.0,0.18]
[1641143141229,1.53920122,47875.0,47867.0,1.37125]
[1641143141428,1.53920122,47875.0,47874.0,0.18]
[1641143141629,3.61100131,47885.0,47874.0,0.181]
[1641143141829,1.65760131,47885.0,47880.0,0.14033567]
[1641143142028,1.65760131,47885.0,47880.0,0.20334567]
[1641143142829,1.65760131,47885.0,47880.0,0.39734567]
[1641143143028,0.18,47883.0,47880.0,0.39734567]
[1641143143230,0.12,47887.0,47880.0,0.39734567]
[1641143143431,0.14033567,47891.0,47880.0,0.39734567]
[1641143143831,0.14033567,47891.0,47881.0,0.009794]
[1641143145128,0.16122164,47896.0,47881.0,0.009794]
[1641143145129,0.16122164,47896.0,47881.0,0.204794]
[1641143145933,0.16122164,47896.0,47887.0,0.14033567]
[1641143146330,0.16122164,47896.0,47887.0,0.15012967]
[1641143146732,1.42301702,47894.0,47887.0,0.15012967]
[1641143146930,1.42301702,47894.0,47887.0,0.34512967]
[1641143147733,1.42301702,47894.0,47887.0,0.33533567]
[1641143148032,0.12,47896.0,47887.0,0.33533567]
[1641143148233,0.07305,47895.0,47887.0,0.14033567]
[1641143148632,0.02088655,47894.0,47887.0,0.14033567]
[1641143149034,0.02088655,47894.0,47887.0,0.33533567]
[1641143149634,0.02088858,47890.0,47887.0,0.33533567]
[1641143149834,0.18,47888.0,47887.0,0.195]
[1641143150234,0.02088858,47890.0,47887.0,0.195]
[1641143150435,0.18,47888.0,47880.0,0.14033567]
[1641143150635,0.18,47887.0,47880.0,0.14033567]
[1641143150937,0.18,47887.0,47880.0,0.33433567]
[1641143151335,0.02088858,47890.0,47880.0,0.33433567]
[1641143151535,0.18,47889.0,47880.0,0.33433567]
[1641143151934,0.02088858,47890.0,47881.0,0.11870215]
[1641143152136,0.02088858,47890.0,47885.0,0.34279059]
[1641143152337,0.18,47889.0,47885.0,0.34279059]
[1641143152953,0.18,47889.0,47885.0,0.53679059]
[1641143153755,0.18,47889.0,47885.0,0.194]
[1641143153956,0.14033567,47888.0,47885.0,0.194]
[1641143154156,0.14033567,47888.0,47883.0,0.34279059]
[1641143154758,0.14033567,47888.0,47881.0,0.009794]
[1641143154958,0.14033567,47888.0,47883.0,0.196]
[1641143155659,0.18,47886.0,47883.0,0.196]
[1641143156558,0.18,47886.0,47872.0,0.16122425]
[1641143156757,0.18,47886.0,47874.0,0.009794]
[1641143156957,0.18,47886.0,47883.0,0.196]
[1641143157758,0.02089051,47885.0,47883.0,0.196]
[1641143158359,0.02089051,47885.0,47874.0,0.009794]
[1641143158559,0.07768051,47885.0,47874.0,0.009794]
[1641143158762,0.07768051,47885.0,47876.0,0.11871233]
[1641143159359,0.18,47880.0,47876.0,0.11871233]
[1641143159560,0.02089205,47882.0,47876.0,0.11871233]
[1641143160060,0.08227655,59957.0,47882.0,1.105]
[1641143160264,0.12,47926.0,47903.0,0.18]
[1641143160565,0.077,47926.0,47903.0,1.354094]
[1641143160761,3.8617,47929.0,47913.0,0.18]
[1641143161063,1.53415307,47929.0,47919.0,0.18]
[1641143161265,1.53415307,47929.0,47928.0,0.043]
[1641143161460,1.53415307,47929.0,47928.0,0.1253]
[1641143162161,1.53415307,47929.0,47928.0,0.26563567]
[1641143162361,0.14033567,47939.0,47928.0,0.26563567]
[1641143162561,0.14033567,47939.0,47934.0,0.043]
[1641143162962,0.137,47935.0,47930.0,0.009794]
[1641143163163,0.15787156,47931.0,47928.0,0.196]
[1641143163564,0.21957156,47931.0,47928.0,0.196]
[1641143163766,0.1987,47931.0,47928.0,0.196]
[1641143163964,0.14033567,47929.0,47928.0,0.196]
[1641143164164,0.27733567,47929.0,47928.0,0.196]
[1641143164365,0.27733567,47929.0,47915.0,0.14033567]
[1641143164563,0.137,47926.0,47917.0,0.043]
[1641143164763,0.14033567,47929.0,47920.0,0.043]
[1641143164963,0.14033567,47929.0,47921.0,0.052794]
[1641143165163,0.14033567,47929.0,47924.0,0.043]
[1641143165365,0.14033567,47929.0,47925.0,0.043]
[1641143165664,0.14033567,47929.0,47921.0,0.009794]
[1641143165864,0.14033567,47929.0,47928.0,0.043]
[1641143166466,0.14033567,47929.0,47925.0,0.009794]
[1641143166966,0.14033567,47929.0,47925.0,0.204794]
[1641143167168,0.137,47926.0,47925.0,0.195]
[1641143168067,0.14033567,47926.0,47925.0,0.195]
[1641143168266,0.29820918,47926.0,47919.0,0.043]
[1641143168869,0.29820918,47926.0,47916.0,0.009794]
[1641143169067,0.137,47922.0,47919.0,0.195]
[1641143169871,0.137,47925.0,47919.0,0.195]
[1641143170070,0.14033567,47920.0,47919.0,0.195]
[1641143170270,0.14033567,47920.0,47919.0,0.043]
[1641143170671,0.14033567,47920.0,47916.0,0.009794]
[1641143170872,0.14033567,47920.0,47916.0,0.052794]
[1641143171071,0.14033567,47920.0,47919.0,0.195]
[1641143171475,0.16121172,47920.0,47919.0,0.195]
[1641143172277,0.16121172,47920.0,47909.0,0.043]
[1641143172576,0.137,47917.0,47910.0,0.009794]
[1641143173277,0.137,47917.0,47914.0,0.80246768]
[1641143173477,0.23246172,47920.0,47916.0,0.5731912]
[1641143173678,0.02087605,47920.0,47916.0,0.5829852]
[1641143173877,1.41504359,47923.0,47919.0,0.043]
[1641143174282,1.43591701,47925.0,47919.0,0.043]
[1641143174477,1.57291701,47925.0,47919.0,0.043]
[1641143174877,1.57291701,47925.0,47916.0,0.15012967]
[1641143174878,0.137,47922.0,47916.0,0.19312967]
[1641143175079,1.43591701,47925.0,47919.0,0.195]
[1641143175479,0.137,47922.0,47921.0,0.56486054]
[1641143176077,0.02087411,47924.0,47921.0,0.56486054]
[1641143176278,0.02087411,47924.0,47916.0,0.15012967]
[1641143176680,0.02087411,47924.0,47920.0,0.043]
[1641143177478,0.14033567,47926.0,47923.0,0.043]
[1641143177980,1.8596,47938.0,47923.0,0.043]
[1641143178179,0.14033567,47939.0,47932.0,0.043]
[1641143178681,0.27733567,47939.0,47924.0,0.14033567]
[1641143178881,0.02086998,47933.0,47924.0,0.14033567]
[1641143179080,0.27733567,47939.0,47932.0,0.195]
[1641143179284,0.02086902,47935.0,47934.0,0.043]
[1641143179580,0.14033567,47939.0,47934.0,0.043]
[1641143179779,0.14033567,47939.0,47932.0,0.195]
[1641143179780,0.137,47937.0,47932.0,0.195]
[1641143179979,0.16120305,47939.0,47932.0,0.238]
[1641143180179,0.16120305,47939.0,47932.0,0.195]
[1641143180380,0.16120305,47939.0,47931.0,0.09413]
[1641143180581,0.137,47937.0,47931.0,0.09413]
[1641143180782,0.137,47932.0,47931.0,0.09413]
[1641143180983,0.137,47932.0,47931.0,0.194]
[1641143181182,0.15787203,47932.0,47931.0,0.194]
[1641143182093,0.02087203,47932.0,47931.0,0.237]
[1641143182286,0.02087203,47932.0,47931.0,0.043]
[1641143182884,0.02087203,47932.0,47927.0,0.009794]
[1641143183083,0.02087203,47932.0,47931.0,0.195]
[1641143183484,0.02087203,47932.0,47931.0,0.238]
[1641143183883,0.02087203,47932.0,47931.0,0.195]
[1641143184386,0.02087203,47932.0,47927.0,0.009794]
[1641143185184,0.02087203,47932.0,47927.0,0.204794]
[1641143185585,0.077,47930.0,47928.0,0.11862055]
[1641143185884,0.06,47931.0,47928.0,0.11862055]
[1641143186087,0.14033567,47929.0,47928.0,0.11862055]
[1641143186287,0.14033567,47929.0,47927.0,0.204794]
[1641143186484,0.14033567,47929.0,47928.0,0.11862322]
[1641143187185,0.14033567,47929.0,47928.0,0.31462322]
[1641143187787,0.27733567,47929.0,47928.0,0.31462322]
[1641143187988,0.27733567,47929.0,47928.0,0.196]
[1641143188189,0.14033567,47929.0,47928.0,0.196]
[1641143188389,0.27733567,47929.0,47927.0,0.009794]
[1641143188588,0.14033567,47929.0,47927.0,0.052794]
[1641143188788,0.14033567,47929.0,47928.0,0.11862217]
[1641143189490,0.27733567,47929.0,47928.0,0.11862217]
[1641143189690,0.14033567,47929.0,47927.0,0.204794]
[1641143189889,0.14033567,47929.0,47927.0,0.247794]
[1641143190289,0.14033567,47929.0,47927.0,0.052794]
[1641143190491,0.14033567,47929.0,47928.0,0.11862182]
[1641143190992,0.30800407,47929.0,47910.0,0.043]
[1641143191194,0.137,47915.0,47902.0,0.043]
[1641143191493,0.02088056,47911.0,47902.0,0.043]
[1641143191793,0.15788056,47911.0,47909.0,0.043]
[1641143192094,0.28067134,47910.0,47909.0,0.043]
[1641143192593,0.009794,47914.0,47909.0,0.16164147]
[1641143192792,0.009794,47914.0,47913.0,0.043]
[1641143193394,0.009794,47914.0,47913.0,0.223]
[1641143193592,0.009794,47914.0,47913.0,0.16164147]
[1641143195194,0.009794,47914.0,47913.0,0.35664147]
[1641143195400,0.009794,47914.0,47913.0,0.53664147]
[1641143195593,0.009794,47914.0,47913.0,0.60263147]
[1641143196197,0.14033567,47916.0,47913.0,0.61242547]
[1641143196394,0.14033567,47916.0,47913.0,0.41742547]
[1641143196596,0.14033567,47916.0,47913.0,0.298784]
[1641143197199,0.14033567,47916.0,47913.0,0.491784]
[1641143198297,0.009794,47923.0,47915.0,0.14033567]
[1641143198500,0.009794,47923.0,47922.0,0.043]
[1641143199099,0.009794,47923.0,47922.0,0.235]
[1641143200100,0.009794,47923.0,47922.0,0.192]
[1641143200497,0.009794,47923.0,47918.0,0.043]
[1641143201098,0.009794,47923.0,47918.0,0.195]
[1641143201499,0.009794,47923.0,47920.0,0.043]
[1641143201698,0.009794,47923.0,47918.0,0.195]
[1641143202102,0.02087569,47920.0,47918.0,0.238]
[1641143202502,0.009794,47923.0,47918.0,0.043]
[1641143202700,0.009794,47923.0,47915.0,0.14033567]
[1641143202701,0.009794,47923.0,47922.0,0.043]
[1641143203607,0.009794,47923.0,47919.0,0.043]
[1641143204008,0.009794,47923.0,47922.0,0.043]
[1641143204407,0.009794,47923.0,47918.0,0.195]
[1641143204606,0.009794,47923.0,47915.0,0.14033567]
[1641143204807,0.009794,47923.0,47921.0,0.043]
[1641143206410,0.009794,47923.0,47915.0,0.52010238]
[1641143206809,0.009794,47923.0,47915.0,0.18333567]
[1641143207310,0.009794,47923.0,47915.0,0.33533567]
[1641143207711,0.009794,47923.0,47917.0,0.043]
[1641143208311,0.009794,47923.0,47920.0,0.043]
[1641143209118,0.009794,47923.0,47920.0,0.238]
[1641143209521,0.009794,47923.0,47920.0,0.195]
[1641143209922,0.146794,47923.0,47920.0,0.195]
[1641143210123,0.0208756,47921.0,47920.0,0.195]
[1641143210321,0.0208756,47921.0,47917.0,0.043]
[1641143210521,0.137,47920.0,47917.0,0.043]
[1641143210821,0.0208756,47921.0,47917.0,0.043]
[1641143211321,0.0208756,47921.0,47917.0,0.238]
[1641143212524,0.137,47920.0,47915.0,0.14033567]
[1641143212725,0.0851056,47921.0,47917.0,0.043]
[1641143212923,0.0208756,47921.0,47917.0,0.043]
[1641143215128,0.0208756,47921.0,47917.0,0.195]
[1641143215329,0.0208756,47921.0,47919.0,0.043]
[1641143216327,0.16121127,47921.0,47919.0,0.043]
[1641143217129,0.16121127,47921.0,47919.0,0.238]
[1641143217729,0.16121127,47921.0,47920.0,0.043]
[1641143218931,0.16121127,47921.0,47910.0,0.009794]
[1641143219133,0.16121127,47921.0,47920.0,0.195]
[1641143219733,0.16121127,47921.0,47920.0,0.30997]
[1641143219940,0.0208756,47921.0,47920.0,0.30997]
[1641143220332,0.0208756,47921.0,47920.0,0.45030567]
[1641143220537,0.0208756,47921.0,47920.0,0.25530567]
[1641143221036,0.009794,47929.0,47920.0,0.25530567]
[1641143221233,0.02087331,47926.0,47920.0,0.41709967]
[1641143221433,0.02087331,47926.0,47925.0,0.043]
[1641143221732,0.02087123,47930.0,47925.0,0.043]
[1641143222034,0.02087123,47930.0,47920.0,0.41709967]
[1641143222234,0.02087123,47930.0,47925.0,0.043]
[1641143222435,0.02087123,47930.0,47922.0,0.043]
[1641143222635,0.02087123,47930.0,47928.0,0.043]
[1641143222835,0.02087123,47930.0,47920.0,0.14033567]
[1641143223034,0.02087123,47930.0,47926.0,0.043]
[1641143223235,0.137,47929.0,47928.0,0.195]
[1641143223434,0.15787333,47929.0,47928.0,0.195]
[1641143224236,0.02087333,47929.0,47928.0,0.195]
[1641143224638,0.009794,47931.0,47921.0,0.043]
[1641143224837,0.137,47928.0,47921.0,0.043]
[1641143225137,0.02087338,47925.0,47921.0,0.238]
[1641143225337,0.02087338,47925.0,47924.0,0.043]
[1641143226538,0.15787338,47925.0,47918.0,0.18333567]
[1641143226739,0.137,47920.0,47918.0,0.18333567]
[1641143226939,0.137,47920.0,47918.0,0.14033567]
[1641143227138,0.2069,47920.0,47918.0,0.33333567]
[1641143227538,0.0699,47920.0,47918.0,0.33333567]
[1641143227740,0.2069,47920.0,47918.0,0.37633567]
[1641143227940,0.2069,47920.0,47918.0,0.33333567]
[1641143228640,0.2069,47920.0,47918.0,0.14033567]
[1641143229040,0.1469,47920.0,47918.0,0.14033567]
[1641143229241,0.1469,47920.0,47918.0,0.37833567]
[1641143229641,0.1469,47920.0,47918.0,0.238]
[1641143229840,0.1469,47920.0,47918.0,0.195]
[1641143230244,0.0699,47920.0,47918.0,0.195]
[1641143230442,0.137,47921.0,47916.0,0.043]
[1641143231143,0.137,47921.0,47916.0,0.238]
[1641143232844,0.137,47921.0,47918.0,0.043]
[1641143233145,0.137,47921.0,47916.0,0.195]
[1641143233344,0.20125,47921.0,47916.0,0.195]
[1641143233546,0.20125,47921.0,47916.0,0.194]
[1641143234349,0.14033567,47918.0,47916.0,0.194]
[1641143234547,0.14033567,47918.0,47913.0,0.043]
[1641143235248,0.14033567,47918.0,47913.0,0.237]
[1641143236049,0.14033567,47918.0,47913.0,0.194]
[1641143236250,0.14033567,47918.0,47915.0,0.043]
[1641143237150,0.14033567,47918.0,47915.0,0.237]
[1641143238551,0.14033567,47918.0,47915.0,0.043]
[1641143239251,0.14033567,47918.0,47915.0,0.238]
[1641143240451,0.14033567,47918.0,47915.0,0.043]
[1641143241251,0.14033567,47918.0,47915.0,0.238]
[1641143242451,0.14033567,47918.0,47915.0,0.043]
[1641143243252,0.14033567,47918.0,47915.0,0.238]
[1641143244653,0.14033567,47918.0,47915.0,0.043]
[1641143245254,0.14033567,47918.0,47915.0,0.238]
[1641143246659,0.14033567,47918.0,47915.0,0.043]
[1641143247257,0.14033567,47918.0,47915.0,0.238]
[1641143248459,0.14033567,47918.0,47915.0,0.043]
[1641143249263,0.14033567,47918.0,47915.0,0.238]
[1641143251061,0.14033567,47918.0,47915.0,0.043]
[1641143251262,0.14033567,47918.0,47915.0,0.238]
[1641143252462,0.14033567,47918.0,47915.0,0.043]
[1641143252762,0.14033567,47918.0,47911.0,0.33676671]
[1641143252964,0.15012967,47918.0,47912.0,0.043]
[1641143253263,0.15012967,47918.0,47911.0,0.33676671]
[1641143253463,0.137,47913.0,47888.0,0.0316]
[1641143253664,0.137,47902.0,47889.0,0.043]
[1641143253864,0.22826,47902.0,47889.0,0.043]
[1641143254068,0.22826,47902.0,47896.0,1.18642219]
[1641143254367,0.22826,47902.0,47886.0,1.46324713]
[1641143254368,0.137,47897.0,47886.0,1.46324713]
[1641143254565,0.16122764,47887.0,47886.0,1.46324713]
[1641143254766,0.22430764,47887.0,47886.0,1.46324713]
[1641143255165,0.42710164,47887.0,47886.0,1.46324713]
[1641143255366,0.42710164,47887.0,47875.0,1.9155046]
[1641143255666,0.137,47885.0,47876.0,0.11870034]
[1641143255866,0.42710164,47887.0,47877.0,0.043]
[1641143256065,0.56410164,47887.0,47877.0,0.043]
[1641143256366,0.42710164,47887.0,47878.0,0.11870034]
[1641143256566,0.14033567,47879.0,47878.0,0.11870034]
[1641143257167,0.31733567,47879.0,47878.0,0.11870034]
[1641143258066,0.31733567,47879.0,47876.0,0.043]
[1641143258466,0.14033567,47879.0,47876.0,0.043]
[1641143258668,0.14033567,47885.0,47878.0,0.18]
[1641143258868,0.14033567,47885.0,47884.0,0.223]
[1641143259272,0.094,47885.0,47884.0,0.34169864]
[1641143260074,0.094,47885.0,47884.0,0.223]
[1641143260472,0.14033567,47887.0,47884.0,0.223]
[1641143260672,0.16122366,47892.0,47884.0,0.043]
[1641143260873,0.16122366,47892.0,47881.0,0.15012967]
[1641143261073,0.16122366,47892.0,47888.0,0.043]
[1641143261273,0.34122366,47892.0,47888.0,0.043]
[1641143261673,0.34122366,47892.0,47884.0,0.184]
[1641143261874,1.64684215,47892.0,47884.0,0.227]
[1641143262277,1.64684215,47892.0,47884.0,0.184]
[1641143262473,1.64684215,47892.0,47887.0,0.043]
[1641143262676,1.30561849,47891.0,47887.0,0.83486459]
[1641143263175,1.48161849,47891.0,47887.0,0.97186459]
[1641143263376,0.02088962,47888.0,47887.0,0.97186459]
[1641143263776,0.02088962,47888.0,47887.0,0.18]
[1641143264177,0.15788962,47888.0,47887.0,0.18]
[1641143264377,0.02088962,47888.0,47887.0,0.18]
[1641143264580,1.32650811,47888.0,47883.0,0.83486459]
[1641143265077,1.32650811,47888.0,47887.0,0.043]
[1641143265279,1.50350811,47888.0,47887.0,0.043]
[1641143265488,0.177,47888.0,47887.0,0.043]
[1641143266491,1.42434372,47890.0,47887.0,0.043]
[1641143266690,0.02088833,47891.0,47887.0,0.043]
[1641143267192,0.19388833,47891.0,47887.0,0.178]
[1641143267400,0.19388833,47891.0,47890.0,0.043]
[1641143268193,0.19388833,47891.0,47887.0,0.178]
[1641143268393,0.15789105,47888.0,47887.0,0.178]
[1641143268592,0.15789105,47888.0,47886.0,0.79186459]
[1641143268593,0.21556105,47888.0,47886.0,0.79186459]
[1641143268793,0.137,47887.0,47886.0,0.79186459]
[1641143269194,0.07856105,47888.0,47886.0,0.79186459]
[1641143269397,0.163,47887.0,47886.0,0.95986459]
[1641143269596,0.163,47887.0,47886.0,0.168]
[1641143270495,0.02089105,47888.0,47885.0,0.043]
[1641143270796,0.02089105,47888.0,47883.0,0.56549112]
[1641143271196,0.19089105,47888.0,47883.0,0.74049112]
[1641143271598,0.02089409,47884.0,47883.0,0.74049112]
[1641143273100,0.02089409,47884.0,47883.0,0.60849112]
[1641143273298,0.19589409,47884.0,47883.0,0.78649112]
[1641143274399,0.19589409,47884.0,47883.0,0.221]
[1641143274598,0.16122976,47884.0,47883.0,0.043]
[1641143275199,0.32722976,47884.0,47883.0,0.216]
[1641143275601,0.32722976,47884.0,47883.0,0.173]
[1641143276400,0.32722976,47884.0,47883.0,0.216]
[1641143276600,0.16122976,47884.0,47883.0,0.043]
[1641143277402,0.33022976,47884.0,47883.0,0.217]
[1641143278599,0.16122976,47884.0,47883.0,0.043]
[1641143278800,0.16122976,47884.0,47880.0,0.043]
[1641143279400,0.33322976,47884.0,47880.0,0.22]
[1641143279600,0.33322976,47884.0,47880.0,0.55908898]
[1641143280501,0.33322976,47884.0,47881.0,0.33908898]
[1641143280502,0.16122976,47884.0,47881.0,0.33908898]
[1641143281304,0.33022976,47884.0,47881.0,0.51408898]
[1641143281602,1.30582589,47883.0,47881.0,0.51408898]
[1641143282204,1.38481589,47883.0,47881.0,0.51408898]
[1641143283205,1.30582589,47882.0,47880.0,0.33908898]
[1641143283407,1.30582589,47882.0,47881.0,0.175]
[1641143284607,1.30582589,47882.0,47880.0,0.33908898]
[1641143284806,1.44282589,47882.0,47880.0,0.33908898]
[1641143285007,0.03068916,47881.0,47877.0,0.79186459]
[1641143285210,0.137,47878.0,47867.0,1.35745161]
[1641143285410,0.137,47868.0,47865.0,0.3397]
[1641143285607,0.23007,47868.0,47860.0,1.47039222]
[1641143285807,0.06,47861.0,47860.0,1.47039222]
[1641143286110,0.08090642,47861.0,47860.0,1.47039222]
[1641143286308,0.08090642,47861.0,47860.0,1.44989222]
[1641143286508,0.08090642,47861.0,47849.0,1.5758046]
[1641143286708,0.28067134,47850.0,47849.0,1.5758046]
[1641143286910,0.35968134,47850.0,47849.0,1.5758046]
[1641143287209,0.38059052,47850.0,47847.0,0.043]
[1641143287408,0.57059052,47850.0,47849.0,0.068]
[1641143287813,0.54968134,47850.0,47849.0,0.248]
[1641143288010,0.0836185,47864.0,47849.0,0.257794]
[1641143288210,0.137,47872.0,47860.0,0.043]
[1641143288411,0.02090253,47861.0,47855.0,0.18]